{"text_format":"3","workbook":"xlsx","n_sheets":1,"sheets":["Popis namirnica"],"not_rendered":{"images":1,"external_links":1,"defined_names":3},"read":"whole","date_system":"1900"}

{"sheet":"Popis namirnica","index":0,"n_rows":31,"n_cols":8,"rows_kept":31,"merged":[[1,1,1,2]]}
[null,"Popis namirnica"]
[null,"DATUM"]
[null,"Kupljeno?","Artikl","Kategorija","Količina","Cijena","Proširena cijena","Robna marka/komentari"]
[null,null,"Naranče","Voće i povrće",null,null,{"$f":"IFERROR(SUM(PopisNamirnica[Količina]*PopisNamirnica[Cijena]), \"\")","v":{"v":0,"d":"0.00 kn"}}]
[null,null,"Jabuke","Voće i povrće",null,null,{"$f":"IFERROR(SUM(PopisNamirnica[Količina]*PopisNamirnica[Cijena]), \"\")","v":{"v":0,"d":"0.00 kn"}}]
[null,null,"Banane","Voće i povrće",null,null,{"$f":"IFERROR(SUM(PopisNamirnica[Količina]*PopisNamirnica[Cijena]), \"\")","v":{"v":0,"d":"0.00 kn"}}]
[null,null,"Zelena salata","Voće i povrće",null,null,{"$f":"IFERROR(SUM(PopisNamirnica[Količina]*PopisNamirnica[Cijena]), \"\")","v":{"v":0,"d":"0.00 kn"}}]
[null,null,"Rajčice","Voće i povrće",null,null,{"$f":"IFERROR(SUM(PopisNamirnica[Količina]*PopisNamirnica[Cijena]), \"\")","v":{"v":0,"d":"0.00 kn"}},"  "]
[null,null,"Mlijeko ","Mliječni proizvodi",null,null,{"$f":"IFERROR(SUM(PopisNamirnica[Količina]*PopisNamirnica[Cijena]), \"\")","v":{"v":0,"d":"0.00 kn"}}]
[null,null,"Sir","Mliječni proizvodi",null,null,{"$f":"IFERROR(SUM(PopisNamirnica[Količina]*PopisNamirnica[Cijena]), \"\")","v":{"v":0,"d":"0.00 kn"}}]
[null,null,"Jaja","Mliječni proizvodi",null,null,{"$f":"IFERROR(SUM(PopisNamirnica[Količina]*PopisNamirnica[Cijena]), \"\")","v":{"v":0,"d":"0.00 kn"}}]
[null,null,"Svježi sir","Mliječni proizvodi",null,null,{"$f":"IFERROR(SUM(PopisNamirnica[Količina]*PopisNamirnica[Cijena]), \"\")","v":{"v":0,"d":"0.00 kn"}}]
[null,null,"Govedina","Mesni proizvodi",null,null,{"$f":"IFERROR(SUM(PopisNamirnica[Količina]*PopisNamirnica[Cijena]), \"\")","v":{"v":0,"d":"0.00 kn"}}]
[null,null,"Piletina","Mesni proizvodi",null,null,{"$f":"IFERROR(SUM(PopisNamirnica[Količina]*PopisNamirnica[Cijena]), \"\")","v":{"v":0,"d":"0.00 kn"}}]
[null,null,"Svinjetina","Mesni proizvodi",null,null,{"$f":"IFERROR(SUM(PopisNamirnica[Količina]*PopisNamirnica[Cijena]), \"\")","v":{"v":0,"d":"0.00 kn"}}]
[null,null,"Sok","Pića",null,null,{"$f":"IFERROR(SUM(PopisNamirnica[Količina]*PopisNamirnica[Cijena]), \"\")","v":{"v":0,"d":"0.00 kn"}}]
[null,null,"Kava","Pića",null,null,{"$f":"IFERROR(SUM(PopisNamirnica[Količina]*PopisNamirnica[Cijena]), \"\")","v":{"v":0,"d":"0.00 kn"}}]
[null,null,"Čaj","Pića",null,null,{"$f":"IFERROR(SUM(PopisNamirnica[Količina]*PopisNamirnica[Cijena]), \"\")","v":{"v":0,"d":"0.00 kn"}}]
[null,null,"Voda","Pića",null,null,{"$f":"IFERROR(SUM(PopisNamirnica[Količina]*PopisNamirnica[Cijena]), \"\")","v":{"v":0,"d":"0.00 kn"}}]
[null,null,"Rezanci","Tjestenina",null,null,{"$f":"IFERROR(SUM(PopisNamirnica[Količina]*PopisNamirnica[Cijena]), \"\")","v":{"v":0,"d":"0.00 kn"}}]
[null,null,"Riža","Tjestenina",null,null,{"$f":"IFERROR(SUM(PopisNamirnica[Količina]*PopisNamirnica[Cijena]), \"\")","v":{"v":0,"d":"0.00 kn"}}]
[null,null,"Konzervirana hrana","Juha",null,null,{"$f":"IFERROR(SUM(PopisNamirnica[Količina]*PopisNamirnica[Cijena]), \"\")","v":{"v":0,"d":"0.00 kn"}}]
[null,null,"Smjesa u prahu","Juha",null,null,{"$f":"IFERROR(SUM(PopisNamirnica[Količina]*PopisNamirnica[Cijena]), \"\")","v":{"v":0,"d":"0.00 kn"}}]
[null,null,"Kruh","Pekarski proizvodi",null,null,{"$f":"IFERROR(SUM(PopisNamirnica[Količina]*PopisNamirnica[Cijena]), \"\")","v":{"v":0,"d":"0.00 kn"}}]
[null,null,"Čips","Grickalice",null,null,{"$f":"IFERROR(SUM(PopisNamirnica[Količina]*PopisNamirnica[Cijena]), \"\")","v":{"v":0,"d":"0.00 kn"}}]
[null,null,"Pereci","Grickalice",null,null,{"$f":"IFERROR(SUM(PopisNamirnica[Količina]*PopisNamirnica[Cijena]), \"\")","v":{"v":0,"d":"0.00 kn"}}]
[null,null,"Sladoled","Grickalice",null,null,{"$f":"IFERROR(SUM(PopisNamirnica[Količina]*PopisNamirnica[Cijena]), \"\")","v":{"v":0,"d":"0.00 kn"}}]
[null,null,"Keksi","Grickalice",null,null,{"$f":"IFERROR(SUM(PopisNamirnica[Količina]*PopisNamirnica[Cijena]), \"\")","v":{"v":0,"d":"0.00 kn"}}]
[null,null,"Papirnati tanjuri","Potrepštine",null,null,{"$f":"IFERROR(SUM(PopisNamirnica[Količina]*PopisNamirnica[Cijena]), \"\")","v":{"v":0,"d":"0.00 kn"}}]
[null,null,"Salvete","Potrepštine",null,null,{"$f":"IFERROR(SUM(PopisNamirnica[Količina]*PopisNamirnica[Cijena]), \"\")","v":{"v":0,"d":"0.00 kn"}}]
[{"$nulls":6},{"$f":"SUBTOTAL(109,PopisNamirnica[Proširena cijena])","v":{"v":0,"d":"0.00 kn"}}]